Cogmind - Beta 13 @@@ ROGUE MODE // 2024.04.30 @ 00:08:34 Player: gigi283 Result: Destroyed by CO-PDH(R) with Subdweller Shrapnel Launcher Performance ------------- Evolutions (0) 0 Regions Visited (2) 400 Robots Destroyed (9) 45 Value Destroyed (335) 335 Prototype IDs (2) 40 Alien Tech Used (0) 0 Bonus (0) 0 TOTAL SCORE: 820 Bonus ------- None Cogmind --------- Core Integrity 0/250 Matter 267/300 Energy 100/100 System Corruption 0% Temperature Cool (0) Movement Core (100) Ox1 Location -10/Subcaves Parts ------- > --- POWER (1) -------- (None) > --- PROPULSION (2) --- (None) > --- UTILITY (2) ------ Structural Scanner Signal Interpreter > --- WEAPON (2) ------- Subdweller Machine Gun > --- INVENTORY (5) ---- Ion Engine Makeshift Power Source Peak State ------------ > --- POWER ------------ Ion Engine > --- PROPULSION ------- Aluminum Leg Aluminum Leg > --- UTILITY ---------- Structural Scanner Signal Interpreter > --- WEAPON ----------- Subdweller Machine Gun Makeshift Shrapnel Gun > --- INVENTORY -------- Ion Engine [Rating: 11] Favorites ----------- Power Ion Engine Engine Ion Engine Propulsion Aluminum Leg Leg Aluminum Leg Utility Signal Interpreter Device Structural Scanner Storage Small Storage Unit Processor Signal Interpreter Hackware Hacking Suite Weapon Assault Rifle Energy Gun EM Pulse Gun Ballistic Gun Assault Rifle Build | -11 -10 -10 ------- Run | Yrd Mat Sub Slots Evolved . | . . . Power . | . . . Propulsion . | . . . Utility . | . . . Weapon . | . . . Parts Attached 16 | 6 8 2 Power 3 | 1 2 . Engine 3 | 1 2 . Core . | . . . Reactor . | . . . Propulsion 4 | 2 2 . Treads . | . . . Leg 4 | 2 2 . Wheel . | . . . Hover . | . . . Flight . | . . . Utility 4 | . 4 . Device 1 | . 1 . Storage 1 | . 1 . Processor 1 | . 1 . Hackware 1 | . 1 . Protection . | . . . Artifact . | . . . Weapon 5 | 3 . 2 Energy Gun 1 | 1 . . Energy Cannon . | . . . Ballistic Gun 4 | 2 . 2 Ballistic Cannon . | . . . Launcher . | . . . Special Weapon . | . . . Impact Weapon . | . . . Slashing Weapon . | . . . Piercing Weapon . | . . . Special Melee Weapon . | . . . Unidentified Prototypes . | . . . Parts Lost 6 | . 2 4 Power 1 | . . 1 Propulsion 2 | . . 2 Utility 1 | . 1 . Weapon 2 | . 1 1 Highest Loss Streak 2 | . 1 2 To Critical Strikes . | . . . Average Slot Usage (%) 86 | . 87 85 Engine 14 | . 14 14 Leg 25 | . 27 19 Device 9 | . 7 14 Processor 12 | . 11 14 Hackware 2 | . 2 . Energy Gun 5 | . 7 . Ballistic Gun 16 | . 14 22 Naked Turns . | . . . Heaviest Build 12 | 7 12 12 Greatest Support 20 | 20 20 20 Greatest Overweight (x) 3 | . . 3 Average Overweight (x) . | . . 1 Largest Inventory Capacity 8 | 5 8 5 Average Capacity 5 | 5 5 5 Most Carried 3 | 2 3 2 Average Carried 1 | 1 1 1 Final Capacity 5 | 5 5 5 Final Carried 2 | 2 1 2 Class Distribution -------------------- 100% | Mutant Dominant Class ---------------- Mutant | -10/Materials Mutant | -10/Subcaves Resources | -11 -10 -10 ----------- Run | Yrd Mat Sub Matter Collected 488 | 233 232 23 Remotely . | . . . Salvage Created 397 | . 374 23 Parts 15 | . 15 . Haulers Intercepted . | . . . Recyclers Shooed . | . . . Parts Field Recycled . | . . . Retrieved Matter . | . . . Parts Self-Destructed 10 | . . 10 Prevented . | . . . Kills | -11 -10 -10 ------- Run | Yrd Mat Sub Combat Hostiles Destroyed 9 | . 8 1 Guns 9 | . 8 1 Classes Destroyed 2 | . 1 1 Grunt 8 | . 8 . Subdweller 1 | . . 1 Best Kill Streak 2 | . 2 1 Combat Bots Only 2 | . 2 1 Max Kills in Single Turn 1 | . 1 1 Gunslinging . | . . . Exploded . | . . . Melee . | . . . Uniques/NPCs Destroyed . | . . . Combat | -11 -10 -10 -------- Run | Yrd Mat Sub Hostile Shots Fired 78 | . 63 15 Missed 25 | . 23 2 Damage Taken 894 | . 482 412 Core 251 | . 119 132 Absorbed by Shields . | . . . Core Remaining (%) 100 | 100 . . Volleys Fired 55 | . 47 8 Largest 2 | . 2 2 Hottest 60 | . 60 54 Shots Fired 97 | . 81 16 Gun 97 | . 81 16 Cannon . | . . . Launcher . | . . . Special . | . . . Kinetic 61 | . 45 16 Thermal . | . . . Explosive . | . . . Electromagnetic 36 | . 36 . Robot Hit Streak 8 | . 8 6 Robot Miss Streak 4 | . 4 3 Penetration Max . | . . . Secondary Targets 3 | . 3 . Max Gunslinging Chain 1 | . 1 . Shots Hit Robots 62 | . 50 12 Core Hits 17 | . 14 3 Critical Kills . | . . . Critical Parts Destroyed . | . . . Critical Strikes 1 | . 1 . Corrupt 1 | . 1 . Melee Attacks . | . . . Impact . | . . . Slashing . | . . . Piercing . | . . . Sneak Attacks . | . . . Combat Hostiles . | . . . Follow-up Attacks . | . . . Damage Inflicted 852 | . 647 205 Guns 852 | . 647 205 Cannons . | . . . Explosions . | . . . Melee . | . . . Ramming . | . . . Kinetic 538 | . 333 205 Thermal . | . . . Explosive . | . . . Electromagnetic 314 | . 314 . Impact . | . . . Slashing . | . . . Piercing . | . . . Highest Corruption . | . . . Average Corruption . | . . . Corruption Purged . | . . . Corruption Blocked . | . . . Overload Shots . | . . . Overflow Damage . | . . . Projectiles . | . . . Explosions . | . . . Melee . | . . . Knockbacks . | . . . Impact . | . . . Kinetic . | . . . Secondary . | . . . Self-Inflicted Damage . | . . . Shots . | . . . Rammed . | . . . Targets Rammed . | . . . Kicked . | . . . Crushed . | . . . Highest Temperature 117 | . 117 . Average Temperature 48 | . 48 . Received Heat Transfer 354 | . 282 72 Siege Activations . | . . . Robots Corrupted . | . . . Combat Hostiles . | . . . Parts Fried . | . . . Impact Corruptions . | . . . Robots Melted . | . . . Combat Hostiles . | . . . Parts Melted . | . . . Heat Transferred . | . . . Parts Sabotaged . | . . . Parts Stolen . | . . . Parts Stripped . | . . . Power Chain Reactions . | . . . Alert | -11 -10 -10 ------- Run | Yrd Mat Sub Peak Influence 245 | . 245 . Initial . | . . . Average 60 | . 82 . Maximum Alert Level 1 | . 1 . Low Security (%) 91 | 100 87 . Level 1 8 | . 12 . Level 2 . | . . . Level 3 . | . . . Level 4 . | . . . Level 5 . | . . . High Security . | . . . Max Security . | . . . Squads Dispatched 3 | . 3 . Investigation 2 | . 2 . Extermination . | . . . Reinforcement 1 | . 1 . Assault . | . . . Garrison . | . . . Intercept . | . . . Searches Triggered . | . . . Construction Impeded . | . . . Haulers Reinforced . | . . . Active Scanning Responses . | . . . Cargo Convoy Interrupts . | . . . Stealth | -11 -10 -10 --------- Run | Yrd Mat Sub Distress Signals 1 | . 1 . Communications Jammed . | . . . Distress Signals . | . . . Times Spotted 15 | . 13 2 Peak Tracking Total 3 | . 3 1 Tactical Retreats 3 | . 3 . Traps | -11 -10 -10 ------- Run | Yrd Mat Sub Traps Triggered 4 | . 2 2 Indirectly . | . . . Trap Hack Attempts . | . . . Triggered . | . . . Disarmed . | . . . Reprogrammed . | . . . Reused . | . . . Traps Extracted . | . . . Installed . | . . . Triggered . | . . . Machines | -11 -10 -10 ---------- Run | Yrd Mat Sub Machines Disabled 1 | . 1 . Max in Single Turn 1 | . 1 . Machines Repaired . | . . . Machines Dismantled . | . . . Machines Sabotaged . | . . . Overloaded Fab Kills . | . . . Hacking | -11 -10 -10 --------- Run | Yrd Mat Sub Machines Accessed 1 | . 1 . Terminals 1 | . 1 . Fabricators . | . . . Repair Stations . | . . . Recycling Units . | . . . Scanalyzers . | . . . Garrison Access . | . . . Total Hacks 1 | . 1 . Successful 1 | . 1 . Failed . | . . . Catastrophic . | . . . Database Lockouts . | . . . Manual 2 | . 2 . Terminals 1 | . 1 . Fabricators . | . . . Repair Stations . | . . . Recycling Units . | . . . Scanalyzers . | . . . Garrison Access . | . . . Terminal Hacks 1 | . 1 . Prototype ID Bank 1 | . 1 . Fabricator Hacks . | . . . Repair Station Hacks . | . . . Recycling Unit Hacks . | . . . Scanalyzer . | . . . Garrison Access Hacks . | . . . Unauthorized Hacks . | . . . Terminals . | . . . Fabricators . | . . . Repair Stations . | . . . Recycling Units . | . . . Scanalyzers . | . . . Garrison Access . | . . . Data Cores Recovered . | . . . Used . | . . . Hacking Detections 2 | . 2 . Full Trace Events . | . . . Feedback Events . | . . . Feedback Blocked . | . . . Robot Schematics Acquired . | . . . Robots Built . | . . . Authchips . | . . . Time . | . . . Total Robot Build Rating . | . . . Part Schematics Acquired . | . . . Parts Built . | . . . Authchips . | . . . Time . | . . . Total Part Build Rating . | . . . Parts Repaired . | . . . Time . | . . . Parts Recycled . | . . . Recycled Matter . | . . . Retrieved Matter . | . . . Retrieved Components . | . . . Parts Scanalyzed . | . . . Part Schematics Acquired . | . . . Parts Damaged . | . . . Bothacking | -11 -10 -10 ------------ Run | Yrd Mat Sub Used RIF Installer . | . . . Robots Hacked . | . . . Non-combat . | . . . Combat . | . . . Robot Hacks Applied . | . . . Relay Couplers Released . | . . . Fabnet Peak Effective % . | . . . Robots Rewired . | . . . Allies Hacked . | . . . Hacks Repelled . | . . . Allies | -11 -10 -10 -------- Run | Yrd Mat Sub Total Allies . | . . . Largest Group . | . . . Highest-Rated Group . | . . . Highest-Rated Ally . | . . . Total Orders . | . . . Ally Attacks . | . . . Total Damage . | . . . Kills . | . . . Allies Corrupted . | . . . Allies Melted . | . . . Intel | -11 -10 -10 ------- Run | Yrd Mat Sub Robot Analysis Total . | . . . Derelict Logs Recovered . | . . . Drone Launches . | . . . Drone Recoveries . | . . . Exploration | -11 -10 -10 ------------- Run | Yrd Mat Sub Turns Passed 2164 | 474 1274 416 Spaces Moved 1093 | 387 479 227 Core 133 | 6 . 127 Treads . | . . . Legs 960 | 381 479 100 Wheels . | . . . Hover . | . . . Flight . | . . . Fastest Speed 50 | 50 120 100 Average Speed 129 | 118 120 168 Slowest Speed 200 | 120 120 200 Overloaded Moves . | . . . Propulsion Burnouts . | . . . Robots Hopped . | . . . Cave-ins Triggered . | . . . Exploration Rate (%) 29 | 9 59 21 Regions Visited 2 Branch Regions 1 Pre-discovered Areas 1 | . . 1 Known Exits Taken 1 | . 1 . Unknown Exits Taken 1 | 1 . . Scrap Searched . | . . . Spaces Dug . | . . . Terrain Destroyed . | . . . Melee . | . . . Projectile . | . . . AOE . | . . . Terrain Rammed . | . . . Walls Destroyed . | . . . Machines Disabled . | . . . Actions | -11 -10 -10 --------- Run | Yrd Mat Sub Total 1741 | 401 1099 241 Wait 553 | . 553 . Move 1091 | 386 478 227 Hop . | . . . Pick Up 18 | 8 7 3 Fast Attach 1 | . 1 . Attach 14 | 6 6 2 Detach . | . . . Swap 1 | . 1 . Drop 8 | 1 6 1 Fire 55 | . 47 8 Melee . | . . . Ram . | . . . Kick . | . . . Crush . | . . . Escape Stasis . | . . . Rewire . | . . . Trap . | . . . Miscellaneous . | . . . Route ------- -11/Scrapyard -10/Materials (discovered 4 exits: *Mat x2 / *Min / *Sub) -10/Subcaves (discovered 1 exit: *Mat) History --------- Turn | Location | Event 4 | -11/Scrapyard | Discovered new exit (range 15) 475 | -11/Scrapyard | Entered Materials 476 | -10/Materials | Build established: Mutant 649 | -10/Materials | Discovered new exit (range 16) 674 | -10/Materials | Identified exit to Mines 744 | -10/Materials | Discovered new exit (range 6) 749 | -10/Materials | Identified exit to Materials 785 | -10/Materials | Discovered exit to Materials (range 16) 1182 | -10/Materials | Discovered new exit (range 13) 1747 | -10/Materials | Identified exit to Subcaves 1749 | -10/Materials | Entered Subcaves 1767 | -10/Subcaves | Learned location of Zion (-7) 1767 | -10/Subcaves | Met a Zionite searching for "candidates" 1775 | -10/Subcaves | Discovered new exit (range 8) 1787 | -10/Subcaves | Identified exit to Materials 1874 | -10/Subcaves | Shifting Twisted Machinery released Sub. Machine Gun 1880 | -10/Subcaves | Shifting Twisted Machinery released Mak. Shrapnel Gun 1945 | -10/Subcaves | Shifting Twisted Machinery released Mak. Power Source 1965 | -10/Subcaves | Shifting Twisted Machinery released Mak. Thermal Plating 1974 | -10/Subcaves | Core integrity fell below 50% 2115 | -10/Subcaves | Core integrity fell below 20% 2165 | -10/Subcaves | Destroyed by CO-PDH(R) with Subdweller Shrapnel Launcher Last Messages --------------- Machinery. 01885_ Dropped Assault Rifle. 01889_ Acquired Sub. Machine Gun. 01905_ Acquired Mak. Shrapnel Gun. Mak. Power Source falls loose from the Twisted Machinery. 01955_ Acquired Mak. Power Source. Mak. Thermal Plating falls loose from the Twisted Machinery. 01968_ Triggered Shrapnel Trap. 01968_ An expanding cloud of shrapnel blasts out in all directions. 01973_ Triggered Piercing Trap. 01973_ Spikes shoot up from the floor. 01973_ Critical hit (Impale). 01973_ Aluminum Leg destroyed. 02132_ R1-CHX(R) destroyed. 02137_ Acquired 23 matter. 02165_ Ion Engine destroyed. 02165_ Mak. Shrapnel Gun destroyed. Map ----- +----------------------------------------------------+ | ## ##??## ## #??????????????????? | | ### ##??## ### ??????????????????? | | # ##??## #### # # ???????????????? | | ##??## ??######## ???????????????? | | ### ##?## ????##### ???????????????? | | ### # # ##?### ??????????????????????????? | | ### #######?## ??????????????????????????? | | #### ############???????????????????????????????? | | #############????????????????????????????????????? | | ########?######???????? ?????????????????????????? | | ##???????#######??????? #???????????????????????? | | ##?????? ###?????? ### ?????????????????????? | | ###???? ##?????? R ###?????????????????????? | | ###?? ###?????? ##???? ##??????????????? | | ### ###???????? #???? ##??????????????? | | ### ###????????? #???? ##??????????????? | | ###????????## #### ##??????????????? | | ##???????##### #### ##??????????????? | | ""## ###??????##### ## #??????????????? | | " #### " ###?????#### ## ?????????????????? | | " #####""##?????? ## # ##?????????????????? | | """"""## ##????? " ###?????????????????? | | "##???????? """ ##??????????????????? | | " ###??????????""""" ###??????????????????? | | "" ###????????????## ####??????????????????? | | " ###???????????### @ #####?????????????????? | | ####??????????#### ####????????????????? | | ###???????????#### ####???????????????? | | "##????????????#### ###???????????????? | | ""##?????????????##### ######???????????? | | "##??????????????#### #######??????????? | | ####???????????????## ## ###??????????? | | #####?????????######## ### ##??????????? | | " ####???????????######## ## ###??????????? | | #""" ###???????????### # # ###???????????? | | ##" ##????????????### ###???????????? | | ## ##????????????## ## ##???????????? | | ### ##?############## ### ##???????????? | | ### ################ #### ##### ##???????????? | | #### #### #### ## ######### ##???????????? | | #### ### ## ## #######???? ##???????????? | | #?## ## ### ###???????? ##???????????? | | #### ### # # ##???????? ##???????????? | | #### ### ##???????? ###???????????? | | #### ###????????####???????????? | | #### # # ####???????????????????????? | | ### #######????????????????????????? | | #### ## #######?????????????????????????? | | #### #######?????????????????????????????? | | ### ######??????????????????????????????? | +----------------------------------------------------+ Best States ------------- Heat Dissipation 25 Energy Generation 10 Energy Capacity 250 Matter Stores 300 Matter Capacity 300 Sight Range 16 Terrain Scan Density 10 Evasion (%) 55 Offensive Hacking 10 Item Schematics ----------------- None Robot Schematics ------------------ None Fabricated ------------ Nothing Alien Tech Used ----------------- None Achievements -------------- None Challenges ------------ None Game ------ Seed SniperMicrowarpMicrothruster Manual? 0 Play Time 00:16:18 Cumulative 7.2 hours Start 2024.04.29 @ 23:52:25 End 2024.04.30 @ 00:08:34 Sessions 1 Manual Loads 0 Difficulty Rogue Special Mode None Game No. 13 Rogue 13 Adventurer 0 Explorer 0 Win Type - Total 0 Types 0/0/0/0/0/0/0/0/0 Lore% 5 Gallery% 13 Achievement% 12 Wizard Run 0 Options --------- Layout 1 ASCII 0 Keyboard 0 Movement Mouse Keybinds 0 Fullscreen 2 Font 24/Smallcaps Map View 50x35 Zoom Use 2% Tactical HUD 1 Map Filters NONE Filters NONE Steam 1 RUN: 644ef2e5-05bb-45a3-b805-e8bf3e43be9d